[Event "Late-Titled-Tuesday-Blitz-March-12-2024"]
[Site "Chess.com"]
[Date "2024.03.12"]
[Round "8"]
[White "Hikaru"]
[Black "Vladimir_Zakhartsov"]
[Result "1-0"]
[WhiteElo "3246"]
[BlackElo "2935"]
[TimeControl "180+1"]
[EndTime "15:25:31 PDT"]
[Termination "Hikaru won by resignation"]

1. d4 {[%clk 0:03:00.9]} 1... Nf6 {[%clk 0:02:56.6]} 2. Bg5 {[%clk 0:03:00.4]}
2... d5 {[%clk 0:02:55.8]} 3. e3 {[%clk 0:03:00.4]} 3... Nbd7 {[%clk 0:02:50.7]}
4. c4 {[%clk 0:02:59.6]} 4... e6 {[%clk 0:02:45.9]} 5. cxd5 {[%clk 0:02:57.5]}
5... exd5 {[%clk 0:02:46]} 6. Bd3 {[%clk 0:02:56.6]} 6... h6 {[%clk 0:02:40.8]}
7. Bh4 {[%clk 0:02:56]} 7... Be7 {[%clk 0:02:40.4]} 8. Nc3 {[%clk 0:02:55]} 8...
c6 {[%clk 0:02:40.8]} 9. Nf3 {[%clk 0:02:54.5]} 9... Ne4 {[%clk 0:02:38.8]} 10.
Bxe7 {[%clk 0:02:50.9]} 10... Qxe7 {[%clk 0:02:39]} 11. Qc2 {[%clk 0:02:47.3]}
11... Nd6 {[%clk 0:02:37]} 12. O-O {[%clk 0:02:42.6]} 12... O-O {[%clk
0:02:36.8]} 13. b4 {[%clk 0:02:40.7]} 13... a6 {[%clk 0:02:22.8]} 14. a4 {[%clk
0:02:39.7]} 14... Rb8 {[%clk 0:02:05.2]} 15. b5 {[%clk 0:02:38.4]} 15... axb5
{[%clk 0:02:04.8]} 16. axb5 {[%clk 0:02:38.7]} 16... Nb6 {[%clk 0:01:50.9]} 17.
bxc6 {[%clk 0:02:31.6]} 17... bxc6 {[%clk 0:01:50.6]} 18. Ne5 {[%clk 0:02:31.9]}
18... Bd7 {[%clk 0:01:30.2]} 19. Ra7 {[%clk 0:02:27.4]} 19... Qe6 {[%clk
0:01:29.9]} 20. Ne2 {[%clk 0:02:22.6]} 20... Ndc4 {[%clk 0:01:27.4]} 21. Nxd7
{[%clk 0:01:47.3]} 21... Nxd7 {[%clk 0:01:28.3]} 22. Bh7+ {[%clk 0:01:47.3]}
22... Kh8 {[%clk 0:01:28.2]} 23. Bf5 {[%clk 0:01:48.2]} 23... Rb2 {[%clk
0:01:12.1]} 24. Qxb2 {[%clk 0:01:45.5]} 24... Qxf5 {[%clk 0:01:11.5]} 25. Qb1
{[%clk 0:01:45.5]} 25... Qg4 {[%clk 0:01:06.8]} 26. Ng3 {[%clk 0:01:42]} 26...
Nf6 {[%clk 0:01:00.2]} 27. Qf5 {[%clk 0:01:39.4]} 27... Qxf5 {[%clk 0:00:45.1]}
28. Nxf5 {[%clk 0:01:39.4]} 28... g6 {[%clk 0:00:44.3]} 29. Ne7 {[%clk 0:01:36]}
29... Kg7 {[%clk 0:00:39]} 30. Nxc6 {[%clk 0:01:34.2]} 30... Rc8 {[%clk
0:00:39.4]} 31. Ne5 {[%clk 0:01:33.9]} 31... Nd6 {[%clk 0:00:35.8]} 32. h3
{[%clk 0:01:31.2]} 32... Nfe4 {[%clk 0:00:35]} 33. Rd7 {[%clk 0:01:28.3]} 33...
Nf5 {[%clk 0:00:17.6]} 34. Rxf7+ {[%clk 0:01:27]} 34... Kg8 {[%clk 0:00:18.2]}
35. Ra7 {[%clk 0:01:26.7]} 35... Nc3 {[%clk 0:00:13.4]} 36. Nxg6 {[%clk
0:01:25.8]} 36... Ne2+ {[%clk 0:00:13.9]} 37. Kh2 {[%clk 0:01:26.1]} 37... Rc2
{[%clk 0:00:13.8]} 38. Ne7+ {[%clk 0:01:25.6]} 1-0

[Event "Late-Titled-Tuesday-Blitz-March-12-2024"]
[Site "Chess.com"]
[Date "2024.03.12"]
[Round "8"]
[White "Mikhail_Golubev"]
[Black "DanielNaroditsky"]
[Result "0-1"]
[WhiteElo "2681"]
[BlackElo "3065"]
[TimeControl "180+1"]
[EndTime "15:25:33 PDT"]
[Termination "DanielNaroditsky won by resignation"]

1. e4 {[%clk 0:03:00.9]} 1... Nf6 {[%clk 0:03:00.9]} 2. e5 {[%clk 0:03:00.1]}
2... Nd5 {[%clk 0:03:01.6]} 3. d4 {[%clk 0:03:00.2]} 3... d6 {[%clk 0:03:02.3]}
4. Nf3 {[%clk 0:03:00.5]} 4... dxe5 {[%clk 0:03:02.8]} 5. Nxe5 {[%clk 0:03:00]}
5... c6 {[%clk 0:03:03.6]} 6. Bc4 {[%clk 0:02:58]} 6... Nd7 {[%clk 0:03:03.3]}
7. Nf3 {[%clk 0:02:57.2]} 7... N7f6 {[%clk 0:03:03.7]} 8. h3 {[%clk 0:02:56]}
8... Bf5 {[%clk 0:03:04.2]} 9. O-O {[%clk 0:02:54.6]} 9... e6 {[%clk 0:03:04.9]}
10. Bd3 {[%clk 0:02:47.1]} 10... Bxd3 {[%clk 0:03:01.7]} 11. Qxd3 {[%clk
0:02:47.7]} 11... Bd6 {[%clk 0:03:02.6]} 12. c4 {[%clk 0:02:42.7]} 12... Ne7
{[%clk 0:03:02.6]} 13. Rd1 {[%clk 0:02:32]} 13... h6 {[%clk 0:03:01.7]} 14. Nc3
{[%clk 0:02:31.4]} 14... O-O {[%clk 0:03:01.4]} 15. Qe2 {[%clk 0:02:16]} 15...
Qc7 {[%clk 0:02:58.4]} 16. b3 {[%clk 0:02:15.2]} 16... Rad8 {[%clk 0:02:55.4]}
17. Bb2 {[%clk 0:02:15.1]} 17... Nf5 {[%clk 0:02:55.5]} 18. Ne4 {[%clk
0:01:52.6]} 18... Be7 {[%clk 0:02:32]} 19. Rac1 {[%clk 0:01:36.9]} 19... Qf4
{[%clk 0:02:21.4]} 20. Nxf6+ {[%clk 0:01:16.9]} 20... Bxf6 {[%clk 0:02:22.3]}
21. g3 {[%clk 0:01:13.3]} 21... Qb8 {[%clk 0:02:19.2]} 22. Rd3 {[%clk 0:01:08]}
22... Rd7 {[%clk 0:02:17.9]} 23. Rcd1 {[%clk 0:01:07.9]} 23... Rfd8 {[%clk
0:02:18.3]} 24. Ne5 {[%clk 0:01:02.2]} 24... Bxe5 {[%clk 0:02:11.6]} 25. dxe5
{[%clk 0:01:02]} 25... Qc7 {[%clk 0:02:10.9]} 26. Qe4 {[%clk 0:00:54.7]} 26...
Rxd3 {[%clk 0:02:06.6]} 27. Rxd3 {[%clk 0:00:55.6]} 27... Rxd3 {[%clk
0:02:07.1]} 28. Qxd3 {[%clk 0:00:55.8]} 28... Qa5 {[%clk 0:02:08]} 29. g4 {[%clk
0:00:36]} 29... Nh4 {[%clk 0:02:00.6]} 30. Bc3 {[%clk 0:00:33.9]} 30... Qc7
{[%clk 0:01:51.2]} 31. Qd6 {[%clk 0:00:33.7]} 31... Qc8 {[%clk 0:01:49.8]} 32.
Kh2 {[%clk 0:00:27.6]} 32... c5 {[%clk 0:01:46.2]} 33. Kg3 {[%clk 0:00:24.9]}
33... Ng6 {[%clk 0:01:44.2]} 34. h4 {[%clk 0:00:20.8]} 34... b6 {[%clk 0:01:44]}
35. h5 {[%clk 0:00:18.7]} 35... Nf8 {[%clk 0:01:44.6]} 36. f4 {[%clk 0:00:18.7]}
36... Qa8 {[%clk 0:01:43.6]} 37. f5 {[%clk 0:00:14.8]} 37... exf5 {[%clk
0:01:41.9]} 38. gxf5 {[%clk 0:00:14.7]} 38... Qe4 {[%clk 0:01:42.6]} 39. f6
{[%clk 0:00:07.7]} 39... Qe3+ {[%clk 0:01:42]} 40. Kh2 {[%clk 0:00:02.7]} 40...
Qxc3 {[%clk 0:01:42.9]} 41. e6 {[%clk 0:00:02]} 41... Qxf6 {[%clk 0:01:42.1]}
0-1

[Event "Late-Titled-Tuesday-Blitz-March-12-2024"]
[Site "Chess.com"]
[Date "2024.03.12"]
[Round "8"]
[White "ncofre98"]
[Black "AccioChess"]
[Result "1-0"]
[WhiteElo "2616"]
[BlackElo "2446"]
[TimeControl "180+1"]
[EndTime "15:25:43 PDT"]
[Termination "ncofre98 won on time"]

1. c4 {[%clk 0:03:00.9]} 1... e5 {[%clk 0:02:53.2]} 2. g3 {[%clk 0:03:00.8]}
2... Nf6 {[%clk 0:02:52.6]} 3. Bg2 {[%clk 0:03:01.4]} 3... d5 {[%clk 0:02:53.1]}
4. cxd5 {[%clk 0:03:01.7]} 4... Nxd5 {[%clk 0:02:54]} 5. Nc3 {[%clk 0:03:01.9]}
5... Nb6 {[%clk 0:02:54.1]} 6. Nf3 {[%clk 0:03:02.6]} 6... Nc6 {[%clk
0:02:53.6]} 7. O-O {[%clk 0:03:03.3]} 7... Bd6 {[%clk 0:02:53.8]} 8. Rb1 {[%clk
0:03:04]} 8... O-O {[%clk 0:02:53.3]} 9. b4 {[%clk 0:03:01.5]} 9... Nxb4 {[%clk
0:02:49.4]} 10. Nxe5 {[%clk 0:03:00.2]} 10... Bxe5 {[%clk 0:02:50.3]} 11. Rxb4
{[%clk 0:02:59.6]} 11... Bxc3 {[%clk 0:02:50.8]} 12. dxc3 {[%clk 0:02:59.1]}
12... Qxd1 {[%clk 0:02:51.4]} 13. Rxd1 {[%clk 0:02:59.5]} 13... c6 {[%clk
0:02:50.2]} 14. c4 {[%clk 0:02:51.3]} 14... Re8 {[%clk 0:02:29.9]} 15. Be3
{[%clk 0:02:46.6]} 15... Be6 {[%clk 0:02:27]} 16. c5 {[%clk 0:02:38.2]} 16...
Nd5 {[%clk 0:02:23]} 17. Rxb7 {[%clk 0:02:38.8]} 17... a5 {[%clk 0:01:50.8]} 18.
Bd4 {[%clk 0:02:30.2]} 18... a4 {[%clk 0:01:28.9]} 19. a3 {[%clk 0:02:26.3]}
19... h5 {[%clk 0:01:12.2]} 20. h3 {[%clk 0:02:22.6]} 20... Red8 {[%clk
0:01:04.3]} 21. Rd2 {[%clk 0:02:09.3]} 21... Rab8 {[%clk 0:00:51.8]} 22. Rdb2
{[%clk 0:01:58.5]} 22... Rxb7 {[%clk 0:00:49.4]} 23. Rxb7 {[%clk 0:01:59.4]}
23... h4 {[%clk 0:00:33]} 24. e3 {[%clk 0:01:52.7]} 24... hxg3 {[%clk
0:00:32.9]} 25. fxg3 {[%clk 0:01:53.6]} 25... f6 {[%clk 0:00:14.1]} 26. g4
{[%clk 0:01:48.9]} 26... Kf8 {[%clk 0:00:10.3]} 27. Bf3 {[%clk 0:01:40.9]} 27...
Ne7 {[%clk 0:00:09.8]} 28. Kg2 {[%clk 0:01:36.7]} 28... Bb3 {[%clk 0:00:09]} 29.
Kg3 {[%clk 0:01:34.2]} 29... Bd5 {[%clk 0:00:06.7]} 30. Bd1 {[%clk 0:01:32]}
30... Ra8 {[%clk 0:00:06.3]} 31. h4 {[%clk 0:01:30.6]} 31... Ng6 {[%clk
0:00:04.3]} 32. Bc2 {[%clk 0:01:29.2]} 32... Ne5 {[%clk 0:00:04.3]} 33. g5
{[%clk 0:01:27.8]} 33... Nc4 {[%clk 0:00:01.1]} 34. gxf6 {[%clk 0:01:25.7]}
34... gxf6 {[%clk 0:00:02]} 35. h5 {[%clk 0:01:20.5]} 35... Nxa3 {[%clk
0:00:02.1]} 36. h6 {[%clk 0:01:19.7]} 1-0

[Event "Late-Titled-Tuesday-Blitz-March-12-2024"]
[Site "Chess.com"]
[Date "2024.03.12"]
[Round "8"]
[White "emeli_chess"]
[Black "AmanteDeMoi"]
[Result "0-1"]
[WhiteElo "2396"]
[BlackElo "2594"]
[TimeControl "180+1"]
[EndTime "15:25:46 PDT"]
[Termination "AmanteDeMoi won by resignation"]

1. d4 {[%clk 0:03:00.9]} 1... g6 {[%clk 0:02:58.3]} 2. c4 {[%clk 0:03:00.5]}
2... Bg7 {[%clk 0:02:58.7]} 3. Nc3 {[%clk 0:03:01.1]} 3... d6 {[%clk 0:02:58.9]}
4. e4 {[%clk 0:03:00.8]} 4... e5 {[%clk 0:02:59.5]} 5. Nge2 {[%clk 0:02:54.5]}
5... Nc6 {[%clk 0:02:58.6]} 6. d5 {[%clk 0:02:54.2]} 6... Nce7 {[%clk
0:02:58.5]} 7. f3 {[%clk 0:02:48.8]} 7... f5 {[%clk 0:02:58.9]} 8. Be3 {[%clk
0:02:47.9]} 8... Nf6 {[%clk 0:02:58.3]} 9. Qd2 {[%clk 0:02:44.9]} 9... O-O
{[%clk 0:02:55.1]} 10. exf5 {[%clk 0:02:35.9]} 10... gxf5 {[%clk 0:02:40.8]} 11.
O-O-O {[%clk 0:02:31.9]} 11... f4 {[%clk 0:02:39.3]} 12. Bf2 {[%clk 0:02:31.7]}
12... Nf5 {[%clk 0:02:35.5]} 13. Kb1 {[%clk 0:02:19.2]} 13... Qe8 {[%clk
0:02:28.5]} 14. Nc1 {[%clk 0:02:12.3]} 14... Qg6 {[%clk 0:02:26]} 15. Bd3 {[%clk
0:02:10.5]} 15... a6 {[%clk 0:02:22.3]} 16. Ne4 {[%clk 0:01:58.3]} 16... Nxe4
{[%clk 0:02:20.6]} 17. Bxe4 {[%clk 0:01:58.3]} 17... Qg5 {[%clk 0:02:17.4]} 18.
g4 {[%clk 0:01:54.8]} 18... Ne3 {[%clk 0:02:15.4]} 19. h4 {[%clk 0:01:50.9]}
19... Qh6 {[%clk 0:02:11.8]} 20. g5 {[%clk 0:01:45.6]} 20... Qh5 {[%clk
0:02:10.8]} 21. Bxe3 {[%clk 0:01:45.3]} 21... fxe3 {[%clk 0:02:11.7]} 22. Qxe3
{[%clk 0:01:45.6]} 22... Bf5 {[%clk 0:02:10.8]} 23. Ne2 {[%clk 0:01:31.1]} 23...
Bg6 {[%clk 0:02:02]} 24. Ng3 {[%clk 0:01:27.3]} 24... Qxf3 {[%clk 0:02:01.8]}
25. Qxf3 {[%clk 0:01:16.4]} 25... Rxf3 {[%clk 0:02:02.7]} 26. Bxg6 {[%clk
0:01:16.4]} 26... hxg6 {[%clk 0:01:59.1]} 27. Ne4 {[%clk 0:01:15]} 27... Rf4
{[%clk 0:01:57.1]} 28. Rde1 {[%clk 0:01:14]} 28... Raf8 {[%clk 0:01:55]} 29. h5
{[%clk 0:01:08.4]} 29... gxh5 {[%clk 0:01:55.9]} 30. Rxh5 {[%clk 0:01:07.5]}
30... Rf1 {[%clk 0:01:51.4]} 31. Rxf1 {[%clk 0:01:04.3]} 31... Rxf1+ {[%clk
0:01:52.3]} 32. Kc2 {[%clk 0:01:04.4]} 32... Kf7 {[%clk 0:01:53.2]} 33. Rh2
{[%clk 0:00:51.1]} 33... Kg6 {[%clk 0:01:53.3]} 34. Kd3 {[%clk 0:00:41.8]} 34...
Rf3+ {[%clk 0:01:52.3]} 35. Ke2 {[%clk 0:00:41.4]} 35... Rf4 {[%clk 0:01:52.8]}
36. Ke3 {[%clk 0:00:36.6]} 36... Kf5 {[%clk 0:01:53]} 37. Nc3 {[%clk 0:00:28.2]}
37... e4 {[%clk 0:01:48.5]} 38. Rf2 {[%clk 0:00:25.5]} 38... Rxf2 {[%clk
0:01:43.3]} 39. Kxf2 {[%clk 0:00:25.5]} 39... Bxc3 {[%clk 0:01:43.8]} 40. bxc3
{[%clk 0:00:25.3]} 40... Kxg5 {[%clk 0:01:44.2]} 41. Ke3 {[%clk 0:00:22.9]}
41... Kf5 {[%clk 0:01:44.2]} 42. a4 {[%clk 0:00:12.1]} 42... b6 {[%clk
0:01:42.9]} 43. Kd4 {[%clk 0:00:06.2]} 43... Kf4 {[%clk 0:01:43.1]} 44. a5
{[%clk 0:00:06.5]} 44... e3 {[%clk 0:01:41.2]} 0-1

[Event "Late-Titled-Tuesday-Blitz-March-12-2024"]
[Site "Chess.com"]
[Date "2024.03.12"]
[Round "8"]
[White "Misterfox120"]
[Black "Statham_01"]
[Result "0-1"]
[WhiteElo "2387"]
[BlackElo "2591"]
[TimeControl "180+1"]
[EndTime "15:25:46 PDT"]
[Termination "Statham_01 won on time"]

1. d4 {[%clk 0:01:39.2]} 1... e6 {[%clk 0:02:58.2]} 2. Bf4 {[%clk 0:01:38.9]}
2... c5 {[%clk 0:02:55.8]} 3. e3 {[%clk 0:01:38.8]} 3... Nf6 {[%clk 0:02:56.2]}
4. Nf3 {[%clk 0:01:38.1]} 4... Nc6 {[%clk 0:02:56]} 5. Nbd2 {[%clk 0:01:36.7]}
5... cxd4 {[%clk 0:02:55]} 6. exd4 {[%clk 0:01:36.9]} 6... Qb6 {[%clk
0:02:55.6]} 7. Nb3 {[%clk 0:01:37.1]} 7... a5 {[%clk 0:02:54]} 8. a4 {[%clk
0:01:36.5]} 8... d5 {[%clk 0:02:50.7]} 9. Be2 {[%clk 0:01:24.4]} 9... Qd8 {[%clk
0:02:41.2]} 10. O-O {[%clk 0:01:22]} 10... Bd6 {[%clk 0:02:41.9]} 11. Ne5 {[%clk
0:01:14.9]} 11... Qc7 {[%clk 0:02:36.6]} 12. Re1 {[%clk 0:01:02]} 12... O-O
{[%clk 0:02:32.1]} 13. Bd3 {[%clk 0:00:55.8]} 13... Nb4 {[%clk 0:02:18.1]} 14.
c3 {[%clk 0:00:49.5]} 14... Nxd3 {[%clk 0:02:17]} 15. Qxd3 {[%clk 0:00:50.4]}
15... Nd7 {[%clk 0:02:08.5]} 16. Nxd7 {[%clk 0:00:37.3]} 16... Bxd7 {[%clk
0:02:09.4]} 17. Bxd6 {[%clk 0:00:37.6]} 17... Qxd6 {[%clk 0:02:10.3]} 18. Nc5
{[%clk 0:00:37.6]} 18... Bc6 {[%clk 0:02:04.9]} 19. Qg3 {[%clk 0:00:37.9]} 19...
Qxg3 {[%clk 0:01:39.9]} 20. hxg3 {[%clk 0:00:38.8]} 20... b6 {[%clk 0:01:40.3]}
21. Nd3 {[%clk 0:00:34.2]} 21... Rfe8 {[%clk 0:01:40.8]} 22. Ne5 {[%clk
0:00:26.4]} 22... Bb7 {[%clk 0:01:39.8]} 23. f4 {[%clk 0:00:24.3]} 23... f6
{[%clk 0:01:39.4]} 24. Nf3 {[%clk 0:00:06.8]} 24... Kf7 {[%clk 0:01:39.4]} 25.
Kf2 {[%clk 0:00:07.1]} 25... Bc6 {[%clk 0:01:35.7]} 26. g4 {[%clk 0:00:06.5]}
26... Reb8 {[%clk 0:01:29.2]} 27. g5 {[%clk 0:00:06.2]} 27... b5 {[%clk
0:01:29.6]} 28. gxf6 {[%clk 0:00:04.5]} 28... gxf6 {[%clk 0:01:29.8]} 29. axb5
{[%clk 0:00:03.7]} 29... Rxb5 {[%clk 0:01:30.7]} 30. Reb1 {[%clk 0:00:02.5]}
30... Rab8 {[%clk 0:01:31.1]} 31. Ra2 {[%clk 0:00:02.9]} 31... a4 {[%clk
0:01:30]} 32. Nd2 {[%clk 0:00:01.6]} 32... R5b7 {[%clk 0:01:18.8]} 0-1

[Event "Late-Titled-Tuesday-Blitz-March-12-2024"]
[Site "Chess.com"]
[Date "2024.03.12"]
[Round "8"]
[White "SaqoChess_Twitch"]
[Black "ContrVersia"]
[Result "1-0"]
[WhiteElo "2677"]
[BlackElo "2866"]
[TimeControl "180+1"]
[EndTime "15:25:49 PDT"]
[Termination "SaqoChess_Twitch won by resignation"]

1. d4 {[%clk 0:03:00.9]} 1... Nf6 {[%clk 0:02:56.5]} 2. c4 {[%clk 0:03:01.4]}
2... g6 {[%clk 0:02:56.8]} 3. Nc3 {[%clk 0:03:01.9]} 3... Bg7 {[%clk 0:02:57.3]}
4. Nf3 {[%clk 0:03:01.3]} 4... O-O {[%clk 0:02:57.1]} 5. h3 {[%clk 0:03:00.1]}
5... d6 {[%clk 0:02:54.5]} 6. Bf4 {[%clk 0:02:59.8]} 6... Nbd7 {[%clk
0:02:38.4]} 7. e3 {[%clk 0:03:00]} 7... c6 {[%clk 0:02:29.1]} 8. Be2 {[%clk
0:03:00.1]} 8... Qc7 {[%clk 0:02:29.5]} 9. Bh2 {[%clk 0:02:57.4]} 9... Ne8
{[%clk 0:02:18.8]} 10. c5 {[%clk 0:02:50.9]} 10... b5 {[%clk 0:01:43.2]} 11. a3
{[%clk 0:02:44.4]} 11... a5 {[%clk 0:01:38.4]} 12. b4 {[%clk 0:02:40.4]} 12...
e5 {[%clk 0:01:34.4]} 13. O-O {[%clk 0:02:34.3]} 13... d5 {[%clk 0:01:13.8]} 14.
e4 {[%clk 0:01:51.3]} 14... dxe4 {[%clk 0:01:06]} 15. Nxe4 {[%clk 0:01:51.2]}
15... Bb7 {[%clk 0:00:37.8]} 16. Nc3 {[%clk 0:01:30.8]} 16... Rd8 {[%clk
0:00:31.4]} 17. Qc2 {[%clk 0:01:18.9]} 17... f6 {[%clk 0:00:21.9]} 18. Rfd1
{[%clk 0:01:11.2]} 18... Qc8 {[%clk 0:00:22]} 19. dxe5 {[%clk 0:00:59]} 19...
Nxe5 {[%clk 0:00:20.4]} 20. Bxe5 {[%clk 0:00:59.4]} 20... fxe5 {[%clk 0:00:20]}
21. Qb3+ {[%clk 0:00:59.9]} 21... Kh8 {[%clk 0:00:19.8]} 22. Ng5 {[%clk
0:01:00.4]} 22... Rxd1+ {[%clk 0:00:18.8]} 23. Rxd1 {[%clk 0:01:00.6]} 23... Qf5
{[%clk 0:00:18.5]} 24. Nce4 {[%clk 0:00:48.9]} 24... Nf6 {[%clk 0:00:12.9]} 25.
Nf7+ {[%clk 0:00:39.9]} 1-0

[Event "Late-Titled-Tuesday-Blitz-March-12-2024"]
[Site "Chess.com"]
[Date "2024.03.12"]
[Round "8"]
[White "DeArron_Fox"]
[Black "Veleamater"]
[Result "1-0"]
[WhiteElo "2535"]
[BlackElo "2323"]
[TimeControl "180+1"]
[EndTime "15:25:50 PDT"]
[Termination "DeArron_Fox won by resignation"]

1. d4 {[%clk 0:03:00.9]} 1... Nf6 {[%clk 0:02:59.6]} 2. c4 {[%clk 0:02:59.9]}
2... g6 {[%clk 0:03:00.1]} 3. Nc3 {[%clk 0:02:59.2]} 3... Bg7 {[%clk 0:03:00.7]}
4. e4 {[%clk 0:02:59.7]} 4... O-O {[%clk 0:03:01.5]} 5. f3 {[%clk 0:03:00.2]}
5... d6 {[%clk 0:03:01.8]} 6. Be3 {[%clk 0:03:00.7]} 6... e5 {[%clk 0:03:02.3]}
7. Nge2 {[%clk 0:03:01.2]} 7... Nc6 {[%clk 0:02:59.9]} 8. Qd2 {[%clk 0:03:01.6]}
8... Nh5 {[%clk 0:02:59.3]} 9. O-O-O {[%clk 0:02:58.3]} 9... f5 {[%clk
0:02:58.4]} 10. exf5 {[%clk 0:02:23.2]} 10... gxf5 {[%clk 0:02:56.7]} 11. d5
{[%clk 0:02:09]} 11... Ne7 {[%clk 0:02:52.4]} 12. Rg1 {[%clk 0:01:58.5]} 12...
Ng6 {[%clk 0:02:47.4]} 13. g3 {[%clk 0:01:48.4]} 13... f4 {[%clk 0:02:36.7]} 14.
gxf4 {[%clk 0:01:47.4]} 14... Nhxf4 {[%clk 0:02:36.9]} 15. Nxf4 {[%clk
0:01:36.5]} 15... Nxf4 {[%clk 0:02:37]} 16. Bd3 {[%clk 0:01:16.4]} 16... Qh4
{[%clk 0:02:28.2]} 17. Rg3 {[%clk 0:01:05.2]} 17... Kh8 {[%clk 0:02:20.7]} 18.
Rdg1 {[%clk 0:01:03.6]} 18... Bh6 {[%clk 0:02:20.5]} 19. Ne4 {[%clk 0:00:39.2]}
19... Bf5 {[%clk 0:02:15]} 20. Kb1 {[%clk 0:00:28]} 20... a6 {[%clk 0:02:10.7]}
21. Ka1 {[%clk 0:00:22.7]} 21... Rab8 {[%clk 0:02:09.5]} 22. Bc2 {[%clk
0:00:13.7]} 22... b6 {[%clk 0:01:58.2]} 23. Ng5 {[%clk 0:00:05.1]} 23... Bxc2
{[%clk 0:01:45.2]} 24. Qxc2 {[%clk 0:00:05.1]} 24... Bxg5 {[%clk 0:01:27.1]} 25.
Rxg5 {[%clk 0:00:06]} 25... Rg8 {[%clk 0:01:27.6]} 26. Qf5 {[%clk 0:00:02.2]}
26... Rxg5 {[%clk 0:01:12.5]} 27. Qf6+ {[%clk 0:00:02.2]} 27... Kg8 {[%clk
0:01:11]} 28. Rxg5+ {[%clk 0:00:02.1]} 28... Qxg5 {[%clk 0:01:11.2]} 29. Qxg5+
{[%clk 0:00:02.2]} 29... Kf7 {[%clk 0:01:11.8]} 30. Bxf4 {[%clk 0:00:02.3]}
30... Rg8 {[%clk 0:01:11.4]} 31. Qf5+ {[%clk 0:00:02.5]} 31... Ke8 {[%clk
0:01:10.9]} 32. Bg3 {[%clk 0:00:03.4]} 32... Rf8 {[%clk 0:01:09.8]} 33. Qe6+
{[%clk 0:00:03.9]} 33... Kd8 {[%clk 0:01:09.9]} 34. Bh4+ {[%clk 0:00:04.2]} 1-0

[Event "Late-Titled-Tuesday-Blitz-March-12-2024"]
[Site "Chess.com"]
[Date "2024.03.12"]
[Round "8"]
[White "goldihouse"]
[Black "chessamical"]
[Result "1-0"]
[WhiteElo "2627"]
[BlackElo "2211"]
[TimeControl "180+1"]
[EndTime "15:25:52 PDT"]
[Termination "goldihouse won on time"]

1. c4 {[%clk 0:03:00]} 1... e5 {[%clk 0:02:54.2]} 2. g3 {[%clk 0:03:00.3]} 2...
c6 {[%clk 0:02:48.9]} 3. d4 {[%clk 0:02:59.7]} 3... Bb4+ {[%clk 0:02:38.6]} 4.
Bd2 {[%clk 0:02:59.7]} 4... Bxd2+ {[%clk 0:02:36.4]} 5. Qxd2 {[%clk 0:03:00.6]}
5... d6 {[%clk 0:02:36.1]} 6. Bg2 {[%clk 0:02:59.6]} 6... Nf6 {[%clk 0:02:33.6]}
7. Nc3 {[%clk 0:02:59.9]} 7... O-O {[%clk 0:02:30.2]} 8. Rd1 {[%clk 0:02:58.8]}
8... Qe7 {[%clk 0:02:29.2]} 9. e3 {[%clk 0:02:58.9]} 9... a5 {[%clk 0:02:27.3]}
10. Nge2 {[%clk 0:02:58.3]} 10... Nbd7 {[%clk 0:02:27.1]} 11. O-O {[%clk
0:02:58.6]} 11... Re8 {[%clk 0:01:40.1]} 12. b3 {[%clk 0:02:54.2]} 12... h6
{[%clk 0:01:38.6]} 13. Rfe1 {[%clk 0:02:48.9]} 13... h5 {[%clk 0:01:11.5]} 14.
Qc2 {[%clk 0:02:39.8]} 14... g6 {[%clk 0:01:10.3]} 15. Na4 {[%clk 0:02:23.3]}
15... h4 {[%clk 0:00:59.1]} 16. Qb2 {[%clk 0:02:12.9]} 16... e4 {[%clk
0:00:48.7]} 17. Nec3 {[%clk 0:01:59.2]} 17... d5 {[%clk 0:00:47.2]} 18. Rc1
{[%clk 0:01:50.9]} 18... Nf8 {[%clk 0:00:45.2]} 19. cxd5 {[%clk 0:01:48.3]}
19... cxd5 {[%clk 0:00:44.7]} 20. Nb6 {[%clk 0:01:45.8]} 20... Rb8 {[%clk
0:00:39.8]} 21. Nbxd5 {[%clk 0:01:45.1]} 21... Nxd5 {[%clk 0:00:34.3]} 22. Nxd5
{[%clk 0:01:46]} 22... Qd6 {[%clk 0:00:34.6]} 23. Nc7 {[%clk 0:01:42.8]} 23...
Re7 {[%clk 0:00:26.1]} 24. Nb5 {[%clk 0:01:42.5]} 24... Qf6 {[%clk 0:00:21.8]}
25. Rc2 {[%clk 0:01:30.6]} 25... Bf5 {[%clk 0:00:19.7]} 26. Rec1 {[%clk
0:01:27.9]} 26... Nh7 {[%clk 0:00:19.8]} 27. d5 {[%clk 0:01:22.2]} 27... hxg3
{[%clk 0:00:17.9]} 28. hxg3 {[%clk 0:01:21.1]} 28... Qxb2 {[%clk 0:00:13.4]} 29.
Rxb2 {[%clk 0:01:20.6]} 29... Ng5 {[%clk 0:00:12.9]} 30. d6 {[%clk 0:01:19.5]}
30... Rd7 {[%clk 0:00:11.3]} 31. Rbc2 {[%clk 0:01:14]} 31... Kg7 {[%clk
0:00:02.4]} 32. Rc8 {[%clk 0:01:12.5]} 32... Rxc8 {[%clk 0:00:02.2]} 33. Rxc8
{[%clk 0:01:13.4]} 33... Ne6 {[%clk 0:00:01.8]} 34. g4 {[%clk 0:01:09.3]} 1-0